Cogmind - Beta 11 X7 @@@ ROGUE MODE // 2021.12.05 @ 22:59:35 // AFD2021/Volatile Player: kasaphescent Result: Destroyed by G-34 Mercenary with Small Laser Performance ------------- Evolutions (1) 500 Regions Visited (2) 400 Robots Destroyed (44) 220 Value Destroyed (826) 826 Prototype IDs (2) 40 Alien Tech Used (0) 0 Bonus (108) 108 TOTAL SCORE: 2094 Bonus ------- High Alert Combat Kills 108 Cogmind --------- Core Integrity 0/400 Matter 166/300 Energy 265/265 System Corruption 2% Temperature Cool (69) Movement Core (250) Ox4 Location -9/Materials Parts ------- > --- POWER (1) -------- Improved Ion Engine > --- PROPULSION (4) --- (None) > --- UTILITY (2) ------ Small Storage Unit > --- WEAPON (2) ------- Spread Laser > --- INVENTORY (8) ---- High-capacity Storage Unit Beam Rifle Heavy Assault Rifle Light Cannon Peak State ------------ > --- POWER ------------ Improved Ion Engine > --- PROPULSION ------- Aluminum Leg Aluminum Leg Aluminum Leg > --- UTILITY ---------- Small Storage Unit Light Armor Plating > --- WEAPON ----------- Improved Medium Laser Improved Assault Rifle > --- INVENTORY -------- High-capacity Storage Unit Beam Rifle Light Cannon [Rating: 13] Favorites ----------- Power Ion Engine Engine Ion Engine Propulsion Aluminum Leg Leg Aluminum Leg Wheel Wheel Utility Small Storage Unit Device Heat Sink Storage Small Storage Unit Protection Light Armor Plating Weapon Medium Laser Energy Gun Medium Laser Ballistic Gun Heavy Assault Rifle Build | -11 -10 -9 ------- Run | Scr Mat Mat Slots Evolved 2 | . . 2 Power . | . . . Propulsion 2 | . . 2 Utility . | . . . Weapon . | . . . Parts Attached 23 | 6 1 16 Power 3 | 1 . 2 Engine 3 | 1 . 2 Core . | . . . Reactor . | . . . Propulsion 9 | 2 . 7 Treads . | . . . Leg 7 | . . 7 Wheel 2 | 2 . . Hover . | . . . Flight . | . . . Utility 4 | 1 1 2 Device 2 | . 1 1 Storage 1 | 1 . . Processor . | . . . Hackware . | . . . Protection 1 | . . 1 Artifact . | . . . Weapon 7 | 2 . 5 Energy Gun 3 | 1 . 2 Energy Cannon . | . . . Ballistic Gun 4 | 1 . 3 Ballistic Cannon . | . . . Launcher . | . . . Special Weapon . | . . . Impact Weapon . | . . . Slashing Weapon . | . . . Piercing Weapon . | . . . Special Melee Weapon . | . . . Unidentified Prototypes 2 | . . 2 Parts Lost 17 | . . 17 Power 2 | . . 2 Propulsion 8 | . . 8 Utility 2 | . . 2 Weapon 5 | . . 5 Highest Loss Streak 10 | . . 10 Average Slot Usage (%) 86 | . 89 85 Engine 11 | . 14 10 Leg 18 | . . 25 Wheel 13 | . 28 8 Device 6 | . 4 7 Storage 11 | . 14 11 Energy Gun 8 | . 14 5 Ballistic Gun 15 | . 14 15 Naked Turns . | . . . Heaviest Build 21 | 13 14 21 Greatest Support 40 | 20 20 40 Greatest Overweight (x) 5 | 1 . 5 Average Overweight (x) . | . . . Largest Inventory Capacity 8 | 8 8 8 Average Capacity 7 | 6 8 8 Most Carried 8 | 6 8 8 Average Carried 5 | 3 7 5 Final Capacity 8 | 8 8 8 Final Carried 8 | 6 8 4 Class Distribution -------------------- 92% | Mutant 7% | Scavenger-Mutant Dominant Class ---------------- Mutant | -10/Materials Mutant | -9/Materials Resources | -11 -10 -9 ----------- Run | Scr Mat Mat Matter Collected 473 | 212 48 213 Remotely . | . . . Salvage Created 1037 | . 131 906 Parts 78 | . 8 70 Haulers Intercepted 1 | . . 1 Recyclers Shooed 2 | . . 2 Parts Field Recycled . | . . . Retrieved Matter . | . . . Parts Self-Destructed . | . . . Prevented . | . . . Kills | -11 -10 -9 ------- Run | Scr Mat Mat Combat Hostiles Destroyed 29 | . 2 27 Melee 1 | . . 1 Guns 18 | . 2 16 AOE 10 | . . 10 Classes Destroyed 11 | . 3 8 Worker 6 | . 1 5 Builder 2 | . . 2 Tunneler 1 | . . 1 Hauler 1 | . . 1 Recycler 1 | . . 1 Mechanic 1 | . . 1 Operator 2 | . . 2 Watcher 1 | . 1 . Swarmer 15 | . . 15 Grunt 12 | . 2 10 Sentry 2 | . . 2 Best Kill Streak 17 | . 2 17 Combat Bots Only 12 | . 1 12 Max Kills in Single Turn 8 | . 2 8 Gunslinging . | . . . Exploded 3 | . . 3 Melee 1 | . . 1 Uniques/NPCs Destroyed . | . . . Combat | -11 -10 -9 -------- Run | Scr Mat Mat Damage Taken 1961 | . 157 1804 Core 492 | . 83 409 Absorbed by Shields . | . . . Core Remaining (%) 83 | 100 66 . Volleys Fired 78 | . 16 62 Largest 2 | . 2 2 Hottest 79 | . 70 79 Shots Fired 155 | . 32 123 Gun 155 | . 32 123 Cannon . | . . . Launcher . | . . . Special . | . . . Kinetic 108 | . 16 92 Thermal 47 | . 16 31 Explosive . | . . . Electromagnetic . | . . . Robot Hit Streak 8 | . 6 8 Robot Miss Streak 5 | . 2 5 Penetration Max . | . . . Secondary Targets 3 | . . 3 Max Gunslinging Chain 1 | . . 1 Shots Hit Robots 90 | . 19 71 Core Hits 62 | . 7 55 Critical Kills . | . . . Critical Parts Destroyed 1 | . 1 . Critical Strikes 2 | . 2 . Burn 1 | . 1 . Destroy 1 | . 1 . Melee Attacks . | . . . Impact . | . . . Slashing . | . . . Piercing . | . . . Sneak Attacks . | . . . Combat Hostiles . | . . . Follow-up Attacks . | . . . Damage Inflicted 2640 | . 247 2393 Guns 1296 | . 211 1085 Cannons . | . . . Explosions 1331 | . 36 1295 Melee . | . . . Ramming 13 | . . 13 Kinetic 861 | . 48 813 Thermal 958 | . 199 759 Explosive 766 | . . 766 Electromagnetic 42 | . . 42 Impact . | . . . Slashing . | . . . Piercing . | . . . Highest Corruption 2 | . . 2 Average Corruption 1 | . . 1 Corruption Purged . | . . . Effects 3 | . . 3 Message Errors 1 | . . 1 Data Loss (minor) 2 | . . 2 Overload Shots . | . . . Overflow Damage 213 | . . 213 Projectiles . | . . . Explosions 213 | . . 213 Melee . | . . . Knockbacks . | . . . Impact . | . . . Kinetic . | . . . Secondary . | . . . Self-Inflicted Damage 317 | . 27 290 Shots 8 | . 1 7 Rammed . | . . . Targets Rammed 7 | . . 7 Kicked 7 | . . 7 Crushed . | . . . Highest Temperature 196 | . 196 111 Average Temperature 49 | . 66 37 Received Heat Transfer 536 | . 75 461 Siege Activations . | . . . Robots Corrupted . | . . . Combat Hostiles . | . . . Parts Fried . | . . . Impact Corruptions . | . . . Robots Melted . | . . . Combat Hostiles . | . . . Parts Melted 5 | . 1 4 Heat Transferred 2071 | . 605 1466 Parts Sabotaged . | . . . Parts Stolen . | . . . Parts Stripped . | . . . Power Chain Reactions 1 | . . 1 Missiles Intercepted . | . . . Alert | -11 -10 -9 ------- Run | Scr Mat Mat Peak Influence . | . . . Initial 51 | . . 51 Average . | . . . Maximum Alert Level 2 | . . 2 Low Security (%) 48 | 100 100 23 Level 1 3 | . . 5 Level 2 47 | . . 70 Level 3 . | . . . Level 4 . | . . . Level 5 . | . . . High Security . | . . . Max Security . | . . . Squads Dispatched 5 | . 1 4 Investigation . | . . . Extermination . | . . . Reinforcement 4 | . 1 3 Assault 1 | . . 1 Garrison . | . . . Intercept . | . . . Construction Impeded . | . . . Haulers Reinforced . | . . . Active Scanning Responses . | . . . Cargo Convoy Interrupts . | . . . Stealth | -11 -10 -9 --------- Run | Scr Mat Mat Distress Signals 3 | . . 3 Communications Jammed . | . . . Distress Signals . | . . . Times Spotted 50 | . 6 44 Peak Tracking Total 7 | . 3 7 Tactical Retreats 4 | . 1 3 Traps | -11 -10 -9 ------- Run | Scr Mat Mat Traps Triggered . | . . . Indirectly . | . . . Trap Hack Attempts . | . . . Triggered . | . . . Disarmed . | . . . Reprogrammed . | . . . Reused . | . . . Traps Extracted . | . . . Installed . | . . . Triggered . | . . . Machines | -11 -10 -9 ---------- Run | Scr Mat Mat Machines Disabled 6 | . 2 4 Max in Single Turn 1 | . 1 1 Machines Sabotaged . | . . . Garrisons Compromised . | . . . Overloaded Fab Kills . | . . . Fab Network Shutdowns . | . . . Hacking | -11 -10 -9 --------- Run | Scr Mat Mat Machines Accessed 1 | . . 1 Terminals 1 | . . 1 Fabricators . | . . . Repair Stations . | . . . Recycling Units . | . . . Scanalyzers . | . . . Garrison Access . | . . . Total Hacks 3 | . . 3 Successful 2 | . . 2 Failed 1 | . . 1 Catastrophic . | . . . Database Lockouts . | . . . Manual 2 | . . 2 Terminals 3 | . . 3 Fabricators . | . . . Repair Stations . | . . . Recycling Units . | . . . Scanalyzers . | . . . Garrison Access . | . . . Terminal Hacks . | . . . Fabricator Hacks . | . . . Repair Station Hacks . | . . . Recycling Unit Hacks . | . . . Scanalyzer . | . . . Garrison Access Hacks . | . . . Unauthorized Hacks 2 | . . 2 Terminals 2 | . . 2 Botnet 1 | . . 1 Disrupt 1 | . . 1 Fabricators . | . . . Repair Stations . | . . . Recycling Units . | . . . Scanalyzers . | . . . Garrison Access . | . . . Data Cores Recovered . | . . . Used . | . . . Hacking Detections 1 | . . 1 Full Trace Events . | . . . Feedback Events . | . . . Feedback Blocked . | . . . Robot Schematics Acquired . | . . . Robots Built . | . . . Matter . | . . . Time . | . . . Total Robot Build Rating . | . . . Part Schematics Acquired . | . . . Parts Built . | . . . Matter . | . . . Time . | . . . Total Part Build Rating . | . . . Parts Repaired . | . . . Time . | . . . Parts Recycled . | . . . Recycled Matter . | . . . Retrieved Matter . | . . . Retrieved Components . | . . . Parts Scanalyzed . | . . . Part Schematics Acquired . | . . . Parts Damaged . | . . . Bothacking | -11 -10 -9 ------------ Run | Scr Mat Mat Used RIF Installer . | . . . Robots Hacked . | . . . Non-combat . | . . . Combat . | . . . Robot Hacks Applied . | . . . Relay Couplers Released . | . . . Robots Rewired . | . . . Allies Hacked . | . . . Hacks Repelled . | . . . Allies | -11 -10 -9 -------- Run | Scr Mat Mat Total Allies . | . . . Largest Group . | . . . Highest-Rated Group . | . . . Highest-Rated Ally . | . . . Total Orders . | . . . Ally Attacks . | . . . Total Damage . | . . . Kills . | . . . Allies Corrupted . | . . . Allies Melted . | . . . Intel | -11 -10 -9 ------- Run | Scr Mat Mat Robot Analysis Total . | . . . Derelict Logs Recovered . | . . . Drone Launches . | . . . Drone Recoveries . | . . . Exploration | -11 -10 -9 ------------- Run | Scr Mat Mat Turns Passed 763 | 56 192 515 Spaces Moved 444 | 46 165 233 Core 5 | 4 . 1 Treads . | . . . Legs 74 | . . 74 Wheels 365 | 42 165 158 Hover . | . . . Flight . | . . . Fastest Speed 50 | 50 80 80 Average Speed 97 | 80 80 114 Slowest Speed 300 | 100 80 300 Overloaded Moves . | . . . Propulsion Burnouts . | . . . Robots Hopped . | . . . Cave-ins Triggered . | . . . Exploration Rate (%) 21 | 4 32 27 Regions Visited 2 Branch Regions . Pre-discovered Areas . | . . . Known Exits Taken . | . . . Unknown Exits Taken 2 | 1 1 . Scrap Searched . | . . . Spaces Dug . | . . . Terrain Destroyed 224 | . 26 198 Melee . | . . . Projectile . | . . . AOE 224 | . 26 198 Terrain Rammed . | . . . Walls Destroyed . | . . . Machines Disabled . | . . . Actions | -11 -10 -9 --------- Run | Scr Mat Mat Total 617 | 62 196 359 Wait 35 | 4 7 24 Move 442 | 45 164 233 Hop . | . . . Pick Up 22 | 7 5 10 Fast Attach 9 | 5 1 3 Attach 12 | 1 . 11 Detach 1 | . . 1 Swap 2 | . . 2 Drop 9 | . 3 6 Fire 78 | . 16 62 Melee . | . . . Ram . | . . . Kick 7 | . . 7 Crush . | . . . Escape Stasis . | . . . Rewire . | . . . Trap . | . . . Miscellaneous . | . . . Route ------- -11/Scrapyard -10/Materials -9/Materials History --------- Turn | Location | Event 4 | -11/Scrapyard | Discovered new exit (range 16) 57 | -11/Scrapyard | Entered Materials 247 | -10/Materials | Discovered new exit (range 3) 249 | -10/Materials | Entered another Materials area 249 | -9/Materials | Evolved 2 slots: Propulsion x2 335 | -9/Materials | Build established: Mutant 421 | -9/Materials | Destroyed 12 combat bots 550 | -9/Materials | Core integrity fell below 50% 649 | -9/Materials | First assault squad dispatched 677 | -9/Materials | Lost 10 parts (1p5n2u2w) 690 | -9/Materials | Core integrity fell below 20% 764 | -9/Materials | Destroyed by G-34 Mercenary with Small Laser Last Messages --------------- 00693_ Repair Station disabled. 00704_ Acquired Imp. Ion Engine. 00706_ Acquired 45 matter. 00710_ Acquired Hvy. Assault Rifle. 00713_ Dropped Beam Rifle. 00713_ Acquired Beam Rifle. 00714_ Dropped Corrupted Lgt. Assault Rifle. 00725_ C-30 ARC bursts open, deploying its payload. 00725_ G-47 Trooper unfolds itself. 00725_ B-36 Bruiser unfolds itself. 00725_ G-34 Mercenary unfolds itself. 00727_ Acquired Spread Laser. 00741_ Kicked G-34 Mercenary. 00741_ G-34 Mercenary destroyed. 00742_ Acquired 27 matter. 00757_ Aluminum Leg destroyed. 00758_ Knocked back. 00759_ Imp. Assault Rifle destroyed. 00763_ System corrupted: Component data lost. 00763_ Imp. Medium Laser destroyed. Map ----- +----------------------------------------------------+ | ?????????????????????????????????## ##?##"" ^ | | ?????????????????????????????????# ### # | | ?????????????????????????????????# | | ?????????????????????????????????# * | | ??????????????#######+###????????# % | | ?????????????? #####???# #### | | ?????????????? ##### % ## # # # | | ?????????????? = | | ??????????????????###+ #### # | | ??????????????????# #?# | | ??????????????????# ??## # # # | | ??????????????????# [ ##??##" | | ??????????????????# ###### # | | ??????????????????# # # #### | | ??????????????????# # #??? | | ??????????????????# # " #??? | | ???????????????????# " #### | | ???????????????????## " # | | ????????????????????###### %[" #""" | | ?????????????????????????# # " % #""" | | ?????????????????????????# # "####+####"S | | ?????????????????????????# / "#???=#??#""" | | ??????????????????????#### # ##??? ???# "" | | ??????????????????#####;## % # #???? ???# | | ?????????????????##;;;; ;# #########?### ???#### | | ?????????????????# [ [ b@ #????????# ##### | | ?????????????????# ; ###??????# | | ?????????????????#|gg ; T | | ?????????????????# """ # ########?# | | ?????????????????#m # #????????# ##### | | ?????????????????# #######????????####??????? | | ?????????????????########????????????????????????? | | ?????????????????????????????????????????????????? | | | | | | | | | | | | | | | | | | | | | | | | | | | | | | | | | | | +----------------------------------------------------+ Best States ------------- Heat Dissipation 38 Energy Generation 12 Energy Capacity 265 Matter Stores 280 Matter Capacity 300 Sight Range 16 Terrain Scan Density 10 Armor Coverage 150 Evasion (%) 55 Item Schematics ----------------- None Robot Schematics ------------------ None Fabricated ------------ Nothing Alien Tech Used ----------------- None Achievements -------------- None Challenges ------------ None Game ------ Seed AbsorptionLinkedDevice Manual? 0 Play Time 00:10:30 Cumulative 175.3 hours Start 2021.12.05 @ 12:07:01 End 2021.12.05 @ 22:59:35 Sessions 2 Manual Loads 0 Difficulty Rogue Special Mode AFD2021/Volatile Game No. 123 Rogue 123 Adventurer 0 Explorer 0 Win Type - Total 3 Types 3/0/0/0/0/0/0/0/0 Lore% 57 Gallery% 74 Achievement% 52 Wizard Run 0 Options --------- ASCII 0 Keyboard 1 Movement Numpad Keybinds 0 Fullscreen 1 Font 18/SmallcapsGlow Map View 76x50 Tactical HUD 1 Map Filters NONE Filters NONE Steam 1 RUN: aee761e1-6182-4bf6-a828-9614dbcc05a3